fUST/lending_fUST_20240821
["ID","MTS","AMOUNT","RATE_DAILY","PERIOD"]
[335408163,1724197853610,-538.35,0.00034931,21]
[335408164,1724197853620,-500.0,0.00034931,21]
[335408165,1724197853631,-500.0,0.00034931,21]
[335408166,1724197853641,-500.0,0.00034931,21]
[335408167,1724197853650,-538.35,0.00034931,21]
[335408168,1724197853660,-500.0,0.00034931,21]
[335408169,1724197853671,-500.0,0.00034931,21]
[335408170,1724197853681,-500.0,0.00034931,21]
[335408171,1724197853690,-596.72,0.00034931,21]
[335408172,1724197853699,-538.35,0.00034931,21]
[335408173,1724197853711,-500.0,0.00034931,21]
[335408174,1724197853721,-500.0,0.00034931,21]
[335408175,1724197853731,-538.35,0.00034931,21]
[335408176,1724197853741,-500.0,0.00034931,21]
[335408177,1724197853750,-500.0,0.00034931,21]
[335408178,1724197853760,-538.35,0.00034931,21]
[335408179,1724197853769,-500.0,0.00034931,21]
[335408180,1724197853778,-538.35,0.00034931,21]
[335408181,1724197853787,-500.0,0.00034931,21]
[335408182,1724197853798,-500.0,0.00034931,21]
[335408183,1724197853807,-500.0,0.00034931,21]
[335408184,1724197853817,-538.35,0.00034931,21]
[335408185,1724197853827,-500.0,0.00034931,21]
[335408186,1724197853836,-500.0,0.00034931,21]
[335408187,1724197853845,-538.35,0.00034931,21]
[335408188,1724197853855,-500.0,0.00034931,21]
[335408189,1724197853865,-398.88570697,0.00034931,21]
[335408190,1724197853875,-497.73,0.00034931,21]
[335408191,1724197853886,-500.0,0.00034931,21]
[335408192,1724197853895,-538.35,0.00034931,21]
[335408193,1724197853905,-500.0,0.00034931,21]
[335408194,1724197853915,-500.0,0.00034931,21]
[335408195,1724197853928,-538.35,0.00034931,21]
[335408196,1724197853938,-500.0,0.00034931,21]
[335408197,1724197853951,-500.0,0.00034931,21]
[335408198,1724197853961,-538.35,0.00034931,21]
[335408199,1724197853971,-500.0,0.00034931,21]
[335408200,1724197853981,-500.0,0.00034931,21]
[335408201,1724197853991,-538.35,0.00034931,21]
[335408202,1724197854001,-500.0,0.00034931,21]
[335408203,1724197854011,-500.0,0.00034931,21]
[335408204,1724197854021,-538.35,0.00034931,21]
[335408205,1724197854032,-500.0,0.00034931,21]
[335408206,1724197854042,-477.06675639,0.00034931,21]
[335408207,1724197854117,-500.0,0.00034931,21]
[335408208,1724197854127,-538.35,0.00034931,21]
[335408209,1724197854137,-500.0,0.00034931,21]
[335408210,1724197854149,-538.42571637,0.00034931,21]
[335408211,1724197854158,-500.0,0.00034931,21]
[335408212,1724197854168,-500.0,0.00034931,21]
[335408213,1724197854178,-500.0,0.00034931,21]
[335408214,1724197854188,-500.0,0.00034931,21]
[335408215,1724197854197,-500.0,0.00034931,21]
[335408216,1724197854206,-500.0,0.00034931,21]
[335408217,1724197854217,-500.0,0.00034931,21]
[335408218,1724197854226,-500.0,0.00034931,21]
[335408219,1724197854235,-500.0,0.00034931,21]
[335408220,1724197854245,-500.0,0.00034931,21]
[335408221,1724197854254,-294.85219121,0.00034931,21]
[335408222,1724197854264,-500.0,0.00034931,21]
[335408223,1724197854273,-500.0,0.00034931,21]
[335408224,1724197854283,-500.0,0.00034931,21]
[335408225,1724197854292,-500.0,0.00034931,21]
[335408226,1724197854302,-500.0,0.00034931,21]
[335408227,1724197854311,-500.0,0.00034931,21]
[335408228,1724197854320,-500.0,0.00034931,21]
[335408229,1724197854331,-500.0,0.00034931,21]
[335408230,1724197854340,-500.0,0.00034931,21]
[335408231,1724197854351,-223.64718686,0.00034931,21]
[335408232,1724197854641,-276.35281314,0.00034931,21]
[335408233,1724197854652,-500.0,0.00034931,21]
[335408234,1724197854663,-500.0,0.00034931,21]
[335408235,1724197854672,-500.0,0.00034931,21]
[335408236,1724197854684,-500.0,0.00034931,21]
[335408237,1724197854693,-500.0,0.00034931,21]
[335408238,1724197854703,-500.0,0.00034931,21]
[335408239,1724197854713,-500.0,0.00034931,21]
[335408240,1724197854722,-140.92335242,0.00034931,21]
[335408241,1724197854881,-359.07664758,0.00034931,21]
[335408242,1724197854890,-500.0,0.00034931,21]
[335408243,1724197854900,-188.43730233,0.00034931,21]
[335408244,1724197854912,-311.56269767,0.00034931,21]
[335408245,1724197854922,-500.0,0.00034931,21]
[335408246,1724197854933,-304.68250803,0.00034931,21]
[335408247,1724197854942,-500.0,0.00034931,21]
[335408248,1724197854952,-500.0,0.00034931,21]
[335408249,1724197854961,-500.0,0.00034931,21]
[335408250,1724197854970,-500.0,0.00034931,21]
[335408251,1724197854980,-500.0,0.00034931,21]
[335408252,1724197854989,-263.51,0.00034931,21]
[335408253,1724197854999,-500.0,0.00034931,21]
[335408254,1724197855009,-405.94884849,0.00034931,21]
[335408255,1724197855021,-500.0,0.00034931,21]
[335408256,1724197855031,-546.11,0.00034931,21]
[335408257,1724197855041,-500.0,0.00034931,21]
[335408258,1724197855051,-546.11,0.00034931,21]
[335408259,1724197855063,-500.0,0.00034931,21]
[335408260,1724197855074,-500.0,0.00034931,21]
[335408261,1724197855083,-546.11,0.00034931,21]
[335408262,1724197855093,-500.0,0.00034931,21]
[335408263,1724197855105,-500.0,0.00034931,21]
[335408264,1724197855116,-546.11,0.00034931,21]
[335408265,1724197855127,-500.0,0.00034931,21]
[335408266,1724197855137,-500.0,0.00034931,21]
[335408267,1724197855147,-546.11,0.00034931,21]
[335408268,1724197855156,-500.0,0.00034931,21]
[335408269,1724197855165,-500.0,0.00034931,21]
[335408270,1724197855175,-546.11,0.00034931,21]
[335408271,1724197855186,-500.0,0.00034931,21]
[335408272,1724197855195,-500.0,0.00034931,21]
[335408273,1724197855205,-546.11,0.00034931,21]
[335408274,1724197855214,-500.0,0.00034931,21]
[335408275,1724197855224,-500.0,0.00034931,21]
[335408276,1724197855234,-546.11,0.00034931,21]
[335408277,1724197855243,-0.85319645,0.00034931,21]
[335408278,1724197855376,-779.97165007,0.00014519,2]
[335408279,1724197855388,-154.60575532,0.00024215,2]
[335408280,1724197855399,-250.0,0.00032387,2]
[335408281,1724197855412,-499.14680355,0.00034931,21]
[335408282,1724197855422,-500.0,0.00034931,21]
[335408283,1724197855434,-546.11,0.00034931,21]
[335408284,1724197855445,-498.15837868,0.00034931,21]
[335408285,1724197855456,-155.29478804,0.00034931,21]
[335408286,1724197855465,-546.11,0.00034931,21]
[335408287,1724197855474,-500.0,0.00034931,21]
[335408288,1724197855483,-546.11,0.00034931,21]
[335408289,1724197855493,-500.0,0.00034931,21]
[335408290,1724197855502,-500.0,0.00034931,21]
[335408291,1724197855512,-546.11,0.00034931,21]
[335408292,1724197855522,-500.0,0.00034931,21]
[335408293,1724197855532,-500.0,0.00034931,21]
[335408294,1724197855541,-546.11,0.00034931,21]
[335408295,1724197855551,-500.0,0.00034931,21]
[335408296,1724197855560,-500.0,0.00034931,21]
[335408297,1724197855570,-407.96587815,0.00034931,21]
[335408298,1724197855581,-500.0,0.00034931,21]
[335408299,1724197855657,-500.0,0.00034931,21]
[335408300,1724197855667,-546.11,0.00034931,21]
[335408301,1724197855680,-500.0,0.00034931,21]
[335408302,1724197855698,-546.11,0.00034931,21]
[335408303,1724197855708,-500.0,0.00034931,21]
[335408304,1724197855718,-546.11,0.00034931,21]
[335408305,1724197855727,-500.0,0.00034931,21]
[335408306,1724197855737,-546.11,0.00034931,21]
[335408307,1724197855749,-500.0,0.00034931,21]
[335408308,1724197855758,-546.11,0.00034931,21]
[335408309,1724197855768,-500.0,0.00034931,21]
[335408310,1724197855777,-500.0,0.00034931,21]
[335408311,1724197855786,-546.11,0.00034931,21]
[335408312,1724197855796,-500.0,0.00034931,21]
[335408313,1724197855806,-546.11,0.00034931,21]
[335408314,1724197855815,-500.0,0.00034931,21]
[335408315,1724197855824,-500.0,0.00034931,21]
[335408316,1724197855835,-546.11,0.00034931,21]
[335408317,1724197855846,-500.0,0.00034931,21]
[335408318,1724197855856,-546.11,0.00034931,21]
[335408319,1724197855866,-500.0,0.00034931,21]
[335408320,1724197855875,-546.11,0.00034931,21]
[335408321,1724197855885,-500.0,0.00034931,21]
[335408322,1724197855896,-500.0,0.00034931,21]
[335408323,1724197855906,-546.14,0.00034931,21]
[335408324,1724197855916,-500.0,0.00034931,21]
[335408325,1724197855928,-195.27714238,0.00034931,21]
[335408326,1724197856093,-63.26509959,0.00034931,21]
[335408327,1724197856102,-186.72792441,0.00034931,21]
[335408328,1724197856115,-313.27207559,0.00034931,21]
[335408329,1724197856124,-500.0,0.00034931,21]
[335408330,1724197856136,-500.0,0.00034931,21]
[335408331,1724197856151,-247.8,0.00034931,21]
[335408332,1724197856160,-500.0,0.00034931,21]
[335408333,1724197856170,-503.56559324,0.00034931,21]
[335408334,1724197856178,-500.0,0.00034931,21]
[335408335,1724197856189,-500.0,0.00034931,21]
[335408336,1724197856198,-500.0,0.00034931,21]
[335408337,1724197856207,-374.23080394,0.00034931,21]
[335408338,1724197856216,-500.0,0.00034931,21]
[335408339,1724197856225,-500.0,0.00034931,21]
[335408340,1724197856235,-500.0,0.00034931,21]
[335408341,1724197856244,-500.0,0.00034931,21]
[335408342,1724197856254,-500.0,0.00034931,21]
[335408343,1724197856265,-500.0,0.00034931,21]
[335408344,1724197856276,-488.35727674,0.00034931,21]
[335408345,1724197856286,-500.0,0.00034931,21]
[335408346,1724197856297,-500.0,0.00034931,21]
[335408347,1724197856307,-500.0,0.00034931,21]
[335408348,1724197856320,-610.14831732,0.00034931,21]
[335408349,1724197856331,-500.0,0.00034931,21]
[335408350,1724197856342,-500.0,0.00034931,21]
[335408351,1724197856352,-391.39034035,0.00034931,21]
[335408352,1724197856362,-500.0,0.00034931,21]
[335408353,1724197856372,-500.0,0.00034931,21]
[335408354,1724197856383,-500.0,0.00034931,21]
[335408355,1724197856393,-500.0,0.00034931,21]
[335408356,1724197856404,-500.0,0.00034931,21]
[335408357,1724197856415,-500.0,0.00034931,21]
[335408358,1724197856426,-500.0,0.00034931,21]
[335408359,1724197856437,-500.0,0.00034931,21]
[335408360,1724197856448,-500.0,0.00034931,21]
[335408361,1724197856458,-500.0,0.00034931,21]
[335408362,1724197856468,-500.0,0.00034931,21]
[335408363,1724197856477,-500.0,0.00034931,21]
[335408364,1724197856486,-500.0,0.00034931,21]
[335408365,1724197856495,-500.0,0.00034931,21]
[335408366,1724197856505,-500.0,0.00034931,21]
[335408367,1724197856516,-500.0,0.00034931,21]
[335408368,1724197856527,-500.0,0.00034931,21]
[335408369,1724197856537,-500.0,0.00034931,21]
[335408370,1724197856547,-255.1944962,0.00034931,21]
[335408371,1724197856556,-500.0,0.00034931,21]
[335408372,1724197856565,-500.0,0.00034931,21]
[335408373,1724197856575,-531.92,0.00034931,21]
[335408374,1724197856585,-500.0,0.00034931,21]
[335408375,1724197856595,-500.0,0.00034931,21]
[335408376,1724197856605,-500.0,0.00034931,21]
[335408377,1724197856615,-500.0,0.00034931,21]
[335408378,1724197856624,-500.0,0.00034931,21]
[335408379,1724197856637,-500.0,0.00034931,21]
[335408380,1724197856646,-500.0,0.00034931,21]
[335408381,1724197856655,-500.0,0.00034931,21]
[335408382,1724197856665,-500.0,0.00034931,21]
[335408383,1724197856675,-504.49577147,0.00034931,21]
[335408384,1724197856685,-501.14411892,0.00034931,21]
[335408385,1724197856694,-500.0,0.00034931,21]
[335408386,1724197856703,-500.0,0.00034931,21]
[335408387,1724197856714,-500.0,0.00034931,21]
[335408388,1724197856724,-500.0,0.00034931,21]
[335408389,1724197856733,-500.0,0.00034931,21]
[335408390,1724197856743,-500.0,0.00034931,21]
[335408391,1724197856754,-500.0,0.00034931,21]
[335408392,1724197856763,-500.0,0.00034931,21]
[335408393,1724197856773,-500.0,0.00034931,21]
[335408394,1724197856782,-500.0,0.00034931,21]
[335408395,1724197856791,-500.0,0.00034931,21]
[335408396,1724197856800,-500.0,0.00034931,21]
[335408397,1724197856809,-500.0,0.00034931,21]
[335408398,1724197856819,-500.0,0.00034931,21]
[335408399,1724197856828,-500.0,0.00034931,21]
[335408400,1724197856839,-297.81896017,0.00034931,21]
[335408401,1724197856849,-500.0,0.00034931,21]
[335408402,1724197856859,-500.0,0.00034931,21]
[335408403,1724197856872,-199.62,0.00034931,21]
[335408404,1724197856884,-500.0,0.00034931,21]
[335408405,1724197856896,-500.0,0.00034931,21]
[335408406,1724197856907,-500.0,0.00034931,21]
[335408407,1724197856919,-500.0,0.00034931,21]
[335408408,1724197856929,-500.0,0.00034931,21]
[335408409,1724197856940,-500.0,0.00034931,21]
[335408410,1724197856951,-500.0,0.00034931,21]
[335408411,1724197856960,-500.0,0.00034931,21]
[335408412,1724197856970,-500.0,0.00034931,21]
[335408413,1724197856980,-500.0,0.00034931,21]
[335408414,1724197856989,-500.0,0.00034931,21]
[335408415,1724197856999,-255.43,0.00034931,21]
[335408416,1724197857009,-500.0,0.00034931,21]
[335408417,1724197857019,-500.0,0.00034931,21]
[335408418,1724197857029,-500.0,0.00034931,21]
[335408419,1724197857039,-500.0,0.00034931,21]
[335408420,1724197857110,-500.0,0.00034931,21]
[335408421,1724197857120,-500.0,0.00034931,21]
[335408422,1724197857131,-500.0,0.00034931,21]
[335408423,1724197857141,-500.0,0.00034931,21]
[335408424,1724197857151,-500.0,0.00034931,21]
[335408425,1724197857161,-500.0,0.00034931,21]
[335408426,1724197857170,-500.0,0.00034931,21]
[335408427,1724197857181,-500.0,0.00034931,21]
[335408428,1724197857190,-500.0,0.00034931,21]
[335408429,1724197857200,-500.0,0.00034931,21]
[335408430,1724197857210,-500.0,0.00034931,21]
[335408431,1724197857219,-500.0,0.00034931,21]
[335408432,1724197857229,-249.07015301,0.00034931,21]
[335408433,1724197857239,-500.0,0.00034931,21]
[335408434,1724197857248,-500.0,0.00034931,21]
[335408435,1724197857258,-500.0,0.00034931,21]
[335408436,1724197857268,-500.0,0.00034931,21]
[335408437,1724197857279,-500.0,0.00034931,21]
[335408438,1724197857290,-502.01701987,0.00034931,21]
[335408439,1724197857301,-500.0,0.00034931,21]
[335408440,1724197857312,-500.0,0.00034931,21]
[335408441,1724197857323,-500.0,0.00034931,21]
[335408442,1724197857333,-500.0,0.00034931,21]
[335408443,1724197857344,-501.72526053,0.00034931,21]
[335408444,1724197857355,-500.0,0.00034931,21]
[335408445,1724197857365,-500.0,0.00034931,21]
[335408446,1724197857375,-500.0,0.00034931,21]
[335408447,1724197857386,-500.0,0.00034931,21]
[335408448,1724197857399,-500.0,0.00034931,21]
[335408449,1724197857409,-500.0,0.00034931,21]
[335408450,1724197857420,-500.0,0.00034931,21]
[335408451,1724197857432,-500.0,0.00034931,21]
[335408452,1724197857444,-500.0,0.00034931,21]
[335408453,1724197857455,-500.0,0.00034931,21]
[335408454,1724197857466,-500.0,0.00034931,21]
[335408455,1724197857477,-500.0,0.00034931,21]
[335408456,1724197857487,-500.0,0.00034931,21]
[335408457,1724197857497,-500.0,0.00034931,21]
[335408458,1724197857508,-500.0,0.00034931,21]
[335408459,1724197857521,-321.24852019,0.00034931,21]
[335408460,1724197857531,-452.55519759,0.00034931,21]
[335408461,1724197857555,-47.44480241,0.00034931,21]
[335408462,1724197857565,-500.0,0.00034931,21]
[335408463,1724197857576,-500.0,0.00034931,21]
[335408464,1724197857587,-500.0,0.00034931,21]
[335408465,1724197857598,-509.53,0.00034931,21]
[335408466,1724197857608,-500.0,0.00034931,21]
[335408467,1724197857618,-57.40402983,0.00034931,21]
[335408468,1724197857635,-442.59597017,0.00034931,21]
[335408469,1724197857646,-272.18483796,0.00034931,21]
[335408470,1724197857707,-782.65797788,0.00024213,2]
[335408471,1724197857720,-2178.65,0.0003452,21]
[335408472,1724197857730,-2178.65,0.0003452,21]
[335408473,1724197857740,-864.46727602,0.00034733,2]
[335408474,1724197857752,-730.82567256,0.0003493,2]
[335408475,1724197857762,-227.81516204,0.00034931,21]
[335408476,1724197857774,-475.93,0.00034931,21]
[335408477,1724197857784,-500.0,0.00034931,21]
[335408478,1724197857797,-526.63,0.00034931,21]
[335408479,1724197857809,-500.0,0.00034931,21]
[335408480,1724197857819,-500.0,0.00034931,21]
[335408481,1724197857830,-526.63,0.00034931,21]
[335408482,1724197857841,-500.0,0.00034931,21]
[335408483,1724197857853,-526.63,0.00034931,21]
[335408484,1724197857863,-500.0,0.00034931,21]
[335408485,1724197857872,-526.63,0.00034931,21]
[335408486,1724197857882,-500.0,0.00034931,21]
[335408487,1724197857891,-526.63,0.00034931,21]
[335408488,1724197857900,-500.0,0.00034931,21]
[335408489,1724197857911,-526.63,0.00034931,21]
[335408490,1724197857923,-504.38450465,0.00034931,21]
[335408491,1724197857935,-526.63,0.00034931,21]
[335408492,1724197857944,-526.63,0.00034931,21]
[335408493,1724197857954,-526.63,0.00034931,21]
[335408494,1724197857963,-500.0,0.00034931,21]
[335408495,1724197857972,-526.63,0.00034931,21]
[335408496,1724197857981,-500.0,0.00034931,21]
[335408497,1724197857992,-526.63,0.00034931,21]
[335408498,1724197858003,-346.50922035,0.00034931,21]
[335408499,1724197858019,-153.49077965,0.00034931,21]
[335408500,1724197858028,-526.63,0.00034931,21]
[335408501,1724197858038,-500.0,0.00034931,21]
[335408502,1724197858048,-313.07922036,0.00034931,21]
[335408503,1724197858189,-451.82049521,0.00024142,2]
[335408506,1724198424454,7000.0,8.52e-05,2]
[335408512,1724198450101,10000.0,8.502e-05,2]
[335408513,1724198474683,10000.0,8.502e-05,2]
[335408514,1724198497007,10000.0,8.502e-05,2]
[335408515,1724198513181,10000.0,8.502e-05,2]
[335408516,1724198529527,457.8758669,8.502e-05,2]
[335408517,1724198535702,749.72647257,8.502e-05,2]
[335408518,1724198744145,-2180.94716595,8.52e-05,2]
[335408519,1724198746153,-731.79168683,8.52e-05,2]
[335408520,1724198832089,-87.26114722,8.52e-05,2]
[335408521,1724198832111,-154.76012181,9.899e-05,2]
[335408522,1724198832131,-375.62643474,9.939e-05,2]
[335408523,1724198832152,-115.39773058,9.939e-05,2]
[335408524,1724198835096,-193.75210736,9.939e-05,2]
[335408525,1724198835117,-150.16559278,9.999e-05,2]
[335408526,1724198847128,-410.76270684,9.999e-05,2]
[335408533,1724198947097,-154.76012181,9.999e-05,2]
[335408534,1724198947118,-2116.17081948,9.999e-05,3]
[335408535,1724198947139,-774.13206125,0.0001,2]
[335408536,1724198947160,-895.44879894,0.0001,2]
[335408537,1724198947181,-154.76012181,0.00010081,2]
[335408538,1724198947202,-2190.01852431,0.00010081,2]
[335408539,1724198947225,-483.50683086,0.00010081,2]
[335408540,1724198947246,-154.76012181,0.00012989,2]
[335408541,1724198947276,-211.0,0.00014,2]
[335408542,1724198947304,-217.62892,0.00014247,2]
[335408543,1724198947327,-176.4953551,0.00014247,2]
[335408544,1724198947350,-262.47312139,0.00016438,2]
[335408545,1724198947372,-201.1978182,0.00016438,2]
[335408546,1724198947398,-166.6666705,0.00016624,2]
[335408547,1724198951171,224.60031589,0.0001212,2]
[335408556,1724199032026,-165.098411,0.00019178,2]
[335408557,1724199032036,-251.0,0.00019178,2]
[335408558,1724199032046,-171.781849,0.00019178,2]
[335408559,1724199032056,-500.0,0.00019232,2]
[335408560,1724199032067,-500.0,0.00019294,2]
[335408561,1724199032076,-500.0,0.00019514,2]
[335408562,1724199032086,-500.0,0.00019518,2]
[335408563,1724199032097,-537.9,0.00019682,2]
[335408564,1724199032107,-156.6552172,0.0002,2]
[335408565,1724199032117,-500.0,0.00020131,2]
[335408566,1724199032126,-19120.55406236,0.00020512,2]
[335408608,1724199043130,-2025.85273131,0.00020512,2]
[335408609,1724199043142,-1833.02698863,0.00020512,2]
[335408610,1724199043152,-500.0,0.00020633,2]
[335408611,1724199043162,-217.62892,0.00020707,2]
[335408612,1724199043171,-179.471033,0.00020797,2]
[335408613,1724199043180,-150.0,0.00021,2]
[335408614,1724199043189,-537.9,0.00021074,2]
[335408616,1724199043199,-445.07305837,0.00021109,2]
[335408633,1724199046128,-21.00188413,0.00021109,2]
[335408634,1724199046138,-500.0,0.00021191,2]
[335408635,1724199046148,-170.02174321,0.00021205,2]
[335408639,1724199046264,-85.19324922,0.00021205,2]
[335408640,1724199082551,237.961616,0.00014247,2]
[335408658,1724199933219,-154.76012181,0.00013333,2]
[335408659,1724199933241,-405.21327077,0.00013698,2]
[335408660,1724199933262,-1001.11736218,0.00014247,2]
[335408661,1724199933286,-218.72502535,0.00014247,2]
[335408662,1724199933309,-753.58298756,0.00014247,2]
[335408664,1724199957105,-2282.67176676,0.00014245,3]
[335408665,1724199957127,-1273.69406439,0.00014247,2]
[335408667,1724200025098,-154.69833824,0.00014247,2]
[335408668,1724200025120,-2052.3939969,0.00016653,2]
[335408669,1724200029108,-3880.65043472,0.00016653,2]
[335408670,1724200037112,-3104.7020427,0.00016653,2]
[335408671,1724200039100,-3139.81489393,0.00016653,2]
[335408672,1724200045087,-1065.14756978,0.00016653,2]
[335408673,1724200159164,-1294.34444621,0.00014245,3]
[335408674,1724200159185,-226.063535,0.00014247,2]
[335408675,1724200159207,-605.00818427,0.00015,2]
[335408676,1724200159227,-2693.76895151,0.00016653,2]
[335408677,1724200159248,-6583.53635387,0.00016653,2]
[335408678,1724200159269,-3573.15993567,0.00017269,2]
[335408679,1724200159922,400.99791326,0.00014519,3]
[335408680,1724200201201,306.40666821,0.00017598,3]
[335408717,1724200232523,-251.0,0.00019178,2]
[335408718,1724200232533,-97.86832155,0.00019178,2]
[335408728,1724200238245,-81.60271145,0.00019178,2]
[335408729,1724200238255,-165.959769,0.00019271,2]
[335408730,1724200238265,-3494.1674725,0.00019477,2]
[335408731,1724200238275,-534.1,0.00019774,2]
[335408732,1724200238284,-500.0,0.00019941,2]
[335408733,1724200238295,-500.0,0.00019994,2]
[335408734,1724200238304,-156.6552172,0.0002,2]
[335408735,1724200238314,-500.0,0.00020085,2]
[335408736,1724200238324,-154.71377951,0.00020119,2]
[335408737,1724200238334,-500.0,0.00020501,2]
[335408738,1724200238343,-226.063535,0.00020707,2]
[335408739,1724200238352,-2306.70121386,0.00021095,2]
[335408740,1724200238361,-534.1,0.00021158,2]
[335408741,1724200238370,-28592.1900406,0.00021195,3]
[335408742,1724200238382,-192.3169147,0.00021198,2]
[335408743,1724200238391,-500.0,0.00021204,2]
[335408744,1724200238401,-420.8234762,0.00021204,2]
[335408745,1724200238410,-1260.76755592,0.00021205,2]
[335408746,1724200238419,-126499.41497098,0.00021205,2]
[335408747,1724200238429,-287.15761358,0.00021205,2]
[335408748,1724200238439,-503.33031317,0.00021241,2]
[335408749,1724200238449,-28592.1900406,0.00022249,3]
[335408750,1724200238461,-500.0,0.00022258,2]
[335408751,1724200238472,-500.0,0.00022259,2]
[335408752,1724200238481,-500.0,0.00022367,2]
[335408753,1724200238490,-500.0,0.00022467,2]
[335408754,1724200238499,-160.0,0.000225,3]
[335408755,1724200238510,-160.0,0.000225,5]
[335408756,1724200238519,-534.1,0.00022542,2]
[335408757,1724200238529,-151.0,0.00022542,2]
[335408758,1724200238538,-500.0,0.00022862,2]
[335408759,1724200238549,-2306.70121384,0.00023067,2]
[335408760,1724200238558,-500.0,0.00023583,2]
[335408761,1724200238567,-953.45396956,0.00023904,2]
[335408762,1724200238577,-782.65797788,0.00023915,2]
[335408763,1724200238586,-534.1,0.00023926,2]
[335408764,1724200238595,-151.0,0.00023926,2]
[335408765,1724200238604,-237.96547026,0.00023999,2]
[335408766,1724200238614,-500.0,0.00023999,2]
[335408767,1724200238624,-500.0,0.00023999,2]
[335408768,1724200238633,-324.72004368,0.00023999,2]
[335408769,1724200238642,-486.9309464,0.00023999,2]
[335408770,1724200238652,-500.0,0.00023999,2]
[335408771,1724200238661,-500.0,0.00023999,2]
[335408772,1724200238671,-500.0,0.00023999,2]
[335408773,1724200238680,-500.0,0.00023999,2]
[335408774,1724200238690,-107315.46996008,0.00024,60]
[335408775,1724200238699,-226.11908431,0.00024142,2]
[335408776,1724200238709,-10511.84618177,0.00024142,2]
[335408777,1724200238719,-154.60575532,0.0002433,2]
[335408778,1724200238728,-154.60575532,0.00024349,2]
[335408779,1724200238737,-160.83387276,0.00024349,2]
[335408780,1724200238748,-882.96114551,0.00024366,2]
[335408781,1724200238758,-398.69910085,0.00024395,2]
[335408782,1724200238767,-200.0,0.00024658,15]
[335408783,1724200238776,-155.95117291,0.00025,2]
[335408784,1724200238786,-505.24793202,0.00025,2]
[335408785,1724200238796,-2306.70121384,0.00025039,2]
[335408786,1724200238805,-534.1,0.0002531,2]
[335408787,1724200238815,-151.0,0.0002531,2]
[335408788,1724200238824,-500.0,0.00025631,2]
[335408789,1724200238833,-500.0,0.00025757,2]
[335408790,1724200238842,-1179.26,0.000266,31]
[335408791,1724200238852,-1179.26,0.000266,31]
[335408792,1724200238862,-1179.26,0.000266,31]
[335408793,1724200238871,-1179.26,0.000266,31]
[335408794,1724200238881,-1179.26,0.000266,31]
[335408795,1724200238891,-1179.26,0.000266,31]
[335408796,1724200238902,-1179.26,0.000266,31]
[335408797,1724200238913,-1179.26,0.000266,31]
[335408798,1724200238925,-1179.26,0.000266,31]
[335408799,1724200238934,-1179.26,0.000266,31]
[335408800,1724200238943,-1179.26,0.000266,31]
[335408801,1724200238953,-1179.26,0.000266,31]
[335408802,1724200238962,-534.1,0.00026694,2]
[335408803,1724200238971,-151.0,0.00026694,2]
[335408804,1724200238980,-2306.70121384,0.00027011,2]
[335408805,1724200238990,-226.063535,0.00027167,2]
[335408806,1724200238999,-534.1,0.00028078,2]
[335408807,1724200239009,-151.0,0.00028078,2]
[335408808,1724200239018,-500.0,0.00028255,2]